bitfinex/quotes_SOLUSD_20240917
["timestamp","ask_amount","ask_price","bid_price","bid_amount"]
[1726568441883,34.3036,133.44,133.35,49.2617]
[1726568441884,7.497,133.39,133.35,49.2617]
[1726568442084,92.514484,133.43,133.35,49.2617]
[1726568443019,7.497,133.39,133.35,49.2617]
[1726568445516,7.4985,133.36,133.34,0.2739197]
[1726568445718,18.7436,133.38,133.34,0.2739197]
[1726568445719,7.499,133.35,133.34,0.2739197]
[1726568448795,7.4987,133.36,133.34,0.2739197]
[1726568448995,18.7436,133.38,133.34,0.2739197]
[1726568450329,7.499,133.35,133.34,0.2739197]
[1726568451820,7.4987,133.36,133.34,0.2739197]
[1726568452229,7.4987,133.36,133.34,0.2502307]
[1726568452947,7.499,133.35,133.34,0.2502307]
[1726568453134,18.7436,133.38,133.31,7.7599704]
[1726568453135,50.0,133.36,133.31,0.2589704]
[1726568454330,7.5007,133.32,133.31,0.2589704]
[1726568457636,18.7482,133.35,133.31,0.2589704]
[1726568457637,7.5002,133.33,133.31,0.2589704]
[1726568457934,65.6138,133.35,133.27,0.2589704]
[1726568458119,7.33044846,133.32,133.27,0.2589704]
[1726568458320,7.5028,133.29,133.27,0.2589704]
[1726568458528,7.5014,133.31,133.27,0.2589704]
[1726568459126,7.502,133.3,133.27,0.2589704]
[1726568459726,7.5024,133.29,133.27,0.2589704]
[1726568460236,7.5025,133.29,133.27,0.2589704]
[1726568461044,7.503,133.28,133.27,0.2589704]
[1726568461420,7.503,133.28,133.23,0.2589704]
[1726568461421,18.7566,133.29,133.23,0.2589704]
[1726568462024,7.5041,133.26,133.23,0.2589704]
[1726568462918,7.5047,133.25,133.23,0.2589704]
[1726568464845,7.5052,133.24,133.23,0.2589704]
[1726568465224,7.5047,133.25,133.23,0.2589704]
[1726568465933,7.5043,133.26,133.23,7.7647704]
[1726568466136,1.30956917,133.28,133.23,0.2589704]
[1726568466333,1.30956917,133.28,133.23,19.0231704]
[1726568467032,7.5044,133.26,133.23,0.2589704]
[1726568468533,7.5047,133.25,133.23,0.2589704]
[1726568471840,7.5034,133.28,133.24,7.5051]
[1726568472153,18.7573,133.29,133.23,7.7646704]
[1726568472525,7.5037,133.27,133.23,7.7646704]
[1726568473749,7.503,133.28,133.24,7.505]
[1726568474533,7.5026,133.29,133.25,7.5046]
[1726568474731,7.502,133.3,133.27,7.5035]
[1726568475042,7.502,133.3,133.27,23.9827]
[1726568475353,7.5016,133.31,133.27,23.9827]
[1726568475832,7.5018,133.3,133.27,23.9827]
[1726568476254,7.5015,133.31,133.27,23.9827]
[1726568477653,1.3094583,133.33,133.27,16.4792]
[1726568477654,0.68902415,133.3,133.27,16.4792]
[1726568478046,0.68902415,133.3,133.25,6.4524]
[1726568478243,7.5034,133.28,133.25,6.4524]
[1726568480345,7.5034,133.28,133.25,13.9569]
[1726568482062,7.5034,133.28,133.25,6.4524]
[1726568482462,7.5034,133.28,133.25,1.4524]
[1726568485253,7.5027,133.29,133.25,8.9567]
[1726568486046,7.5027,133.29,133.26,7.5041]
[1726568486564,7.5027,133.29,133.25,27.7182]
[1726568487659,7.503,133.28,133.25,20.2138]
[1726568487862,7.5036,133.27,133.23,24.4213704]
[1726568488365,7.5032,133.28,133.23,35.6791704]
[1726568489341,7.5032,133.28,133.25,7.5046]
[1726568490360,15.3934,133.32,133.26,9.00472018]
[1726568490667,7.5022,133.3,133.26,9.00472018]
[1726568490847,7.5022,133.3,133.27,1.50057346]
[1726568491041,7.5022,133.3,133.26,7.504]
[1726568491251,7.5022,133.3,133.26,9.00456542]
[1726568491868,22.8943,133.32,133.27,18.7577]
[1726568492167,7.5016,133.31,133.27,26.261]
[1726568492662,7.5019,133.3,133.27,26.261]
[1726568493246,7.5019,133.3,133.27,18.7577]
[1726568495658,7.5019,133.3,133.27,26.2612]
[1726568498164,7.5019,133.3,133.27,18.7577]
[1726568500461,7.5021,133.3,133.27,9.00377194]
[1726568500648,20.0611583,133.33,133.27,9.00377194]
[1726568500852,7.5016,133.31,133.27,9.00377194]
[1726568501452,7.5016,133.31,133.27,7.5033]
[1726568504879,7.501,133.32,133.29,7.5024]
[1726568506249,7.501,133.32,133.28,16.69160068]
[1726568506250,7.501,133.32,133.28,22.694]
[1726568514180,7.5002,133.33,133.29,27.7586458]
[1726568514476,7.5002,133.33,133.3,1.50017349]
[1726568514975,7.5002,133.33,133.29,26.2584]
[1726568515186,7.5002,133.33,133.29,27.75856902]
[1726568515475,7.4998,133.34,133.3,7.5018]
[1726568515777,7.5002,133.33,133.3,7.5018]
[1726568517162,7.4998,133.34,133.3,7.5018]
[1726568517669,7.5002,133.33,133.3,7.5018]
[1726568519276,7.4998,133.34,133.3,7.5018]
[1726568521155,7.5002,133.33,133.3,7.5018]
[1726568529981,7.4997,133.34,133.3,7.5018]
[1726568530288,7.4997,133.34,133.31,7.5011]
[1726568530604,7.4987,133.36,133.32,7.5006]
[1726568530899,7.499,133.35,133.32,7.5006]
[1726568531497,7.4997,133.34,133.31,18.7528]
[1726568532000,7.4992,133.35,133.31,26.2538]
[1726568540608,7.5001,133.34,133.31,18.7528]
[1726568541281,7.5001,133.34,133.31,26.254]
[1726568541706,7.4992,133.35,133.31,26.254]
[1726568550388,7.5008,133.32,133.29,26.2582]
[1726568551194,17.50548731,133.33,133.29,26.2582]
[1726568552294,7.5007,133.32,133.29,26.2582]
[1726568552507,7.5007,133.32,133.29,18.756]
[1726568553813,13.96013165,133.33,133.28,15.1912]
[1726568554019,7.5021,133.3,133.27,6.2713]
[1726568554935,7.5034,133.28,133.25,16.3938]
[1726568555230,7.5036,133.27,133.24,6.4066]
[1726568556634,7.5036,133.27,133.23,26.5280704]
[1726568558132,3.95514434,133.29,133.23,19.0224704]
[1726568558308,7.5039,133.27,133.23,26.5280704]
[1726568559819,7.5042,133.26,133.23,26.5280704]
[1726568560931,22.71184434,133.29,133.23,0.2589704]
[1726568561105,0.68902415,133.28,133.23,0.2589704]
[1726568561615,7.5043,133.26,133.23,0.2589704]
[1726568564750,3.95514434,133.31,133.23,1.75990811]
[1726568565054,7.5011,133.32,133.28,7.5029]
[1726568568543,7.5011,133.32,133.28,9.00326043]
[1726568569949,7.5013,133.31,133.28,1.50036043]
[1726568570320,7.5013,133.31,133.27,26.2619]
[1726568574350,7.5019,133.3,133.27,18.7586]
[1726568574649,16.81786316,133.3,133.27,18.7586]
[1726568574852,7.5019,133.3,133.27,18.7586]
[1726568576749,7.5019,133.3,133.27,26.262]
[1726568577448,1.30880918,133.33,133.29,7.5024]
[1726568577650,8.80920918,133.33,133.29,23.3127]
[1726568577853,7.5004,133.33,133.3,7.5017]
[1726568578050,7.5004,133.33,133.3,9.00182147]
[1726568578253,30.31828559,133.37,133.3,7.5017]
[1726568578254,7.4997,133.34,133.3,7.5017]
[1726568578428,7.4997,133.34,133.31,7.5012]
[1726568578748,7.499,133.35,133.32,7.5006]
[1726568579533,7.499,133.35,133.31,34.4076271]
[1726568579929,7.499,133.35,133.31,32.9076]
[1726568580129,17.50418731,133.35,133.31,32.9076]
[1726568580442,7.4992,133.35,133.31,32.9076]
[1726568581034,7.4988,133.36,133.32,7.5006]
[1726568581447,7.4991,133.35,133.32,7.5006]
[1726568582254,7.4991,133.35,133.31,32.9076]
[1726568583145,7.4997,133.34,133.31,25.4066]
[1726568583343,7.4997,133.34,133.31,6.6536]
[1726568583555,7.5001,133.33,133.31,6.6536]
[1726568584047,7.4998,133.34,133.31,6.6536]
[1726568586334,7.5002,133.33,133.31,6.6536]
[1726568586740,7.4998,133.34,133.31,6.6536]
[1726568588075,7.5002,133.33,133.31,6.6536]
[1726568589338,7.4998,133.34,133.31,6.6536]
[1726568589964,7.5008,133.32,133.29,34.565]
[1726568590154,18.7477,133.35,133.29,15.8103]
[1726568590155,7.5018,133.3,133.29,15.8103]
[1726568590469,7.5015,133.31,133.29,15.8103]
[1726568592935,7.5008,133.32,133.29,15.8103]
[1726568593147,7.5002,133.33,133.29,15.8103]
[1726568593764,7.5002,133.33,133.29,23.3124]
[1726568594858,7.5002,133.33,133.3,7.5018]
[1726568598672,7.4998,133.34,133.3,7.5018]
[1726568600889,7.5002,133.33,133.3,7.5018]
[1726568601996,7.5002,133.33,133.29,23.3125]
[1726568602283,7.5011,133.32,133.29,15.8103]
[1726568602503,2.68875161,133.33,133.29,15.8103]
[1726568602504,7.5013,133.31,133.29,15.8103]
[1726568606795,7.5024,133.3,133.26,7.5037]
[1726568621179,7.5013,133.31,133.28,7.5028]
[1726568624680,3.95514434,133.33,133.25,40.4668]
[1726568624883,18.7547,133.3,133.25,15.2044]
[1726568625085,7.5038,133.27,133.23,19.0233704]
[1726568625820,7.5032,133.28,133.24,7.5051]
[1726568629315,7.5026,133.29,133.25,7.5045]
[1726568630398,7.503,133.28,133.25,7.5045]
[1726568635127,3.95514434,133.31,133.23,19.0233704]
[1726568635128,7.5035,133.27,133.24,7.5049]
[1726568635605,7.5035,133.27,133.23,26.5289704]
[1726568643323,7.5035,133.27,133.24,7.5052]
[1726568644520,7.5031,133.28,133.25,7.5046]
[1726568644714,8.81172885,133.29,133.25,7.5046]
[1726568644917,1.30912885,133.29,133.26,9.00470209]
[1726568645219,11.45534434,133.33,133.29,7.502]
[1726568645942,7.5007,133.32,133.29,7.502]
[1726568646239,7.5007,133.32,133.28,26.2602]
[1726568646240,7.5008,133.32,133.28,26.2602]
[1726568646428,7.5008,133.32,133.28,18.7573]
[1726568646429,10.19035161,133.31,133.28,18.7573]
[1726568646616,16.50672358,133.31,133.28,18.7573]
[1726568647334,7.5019,133.3,133.26,48.4525]
[1726568653532,7.5015,133.31,133.27,1.50062322]
[1726568653731,7.5015,133.31,133.26,40.9486]
[1726568654156,7.5009,133.32,133.28,7.5027]
[1726568657866,7.5013,133.31,133.28,7.5027]
[1726568658265,7.5013,133.31,133.27,26.261]
[1726568658438,7.502,133.3,133.27,26.261]
[1726568659949,7.502,133.3,133.27,18.7576]
[1726568660549,7.502,133.3,133.27,26.2611]
[1726568664980,3.95514434,133.32,133.24,37.5247]
[1726568664981,7.5037,133.27,133.24,7.5049]
[1726568666913,10.31419455,133.3,133.23,7.7644704]
[1726568667091,27.73202834,133.29,133.23,0.2589704]
[1726568667253,7.5043,133.26,133.23,0.2589704]
[1726568671882,7.5047,133.25,133.23,0.2589704]
[1726568673075,7.5052,133.24,133.23,0.2589704]
[1726568676999,31.282084,133.24,133.23,0.2589704]
[1726568678797,34.32865687,133.24,133.23,0.2589704]
[1726568678998,34.32865687,133.24,133.19,0.2589704]
[1726568678999,7.5072,133.21,133.19,0.2589704]
[1726568679290,30.77860121,133.24,133.19,0.2589704]
[1726568679291,23.776884,133.24,133.19,0.2589704]
[1726568680393,7.5069,133.21,133.19,0.2589704]
[1726568689912,1.30971655,133.23,133.22,7.5063]
[1726568690121,7.5039,133.27,133.21,20.26741754]
[1726568690287,7.5036,133.27,133.23,26.2699]
[1726568690489,7.5046,133.26,133.21,7.5067]
[1726568695222,7.5046,133.26,133.22,7.5063]
[1726568695400,7.5036,133.27,133.23,9.00669831]
[1726568695602,7.5036,133.27,133.23,7.5056]
[1726568697902,7.5031,133.28,133.24,7.5051]
[1726568699114,19.75102436,133.3,133.25,7.5044]
[1726568699415,7.5034,133.28,133.24,26.2674]
[1726568700423,14.23622154,133.32,133.24,34.5163]
[1726568700594,7.5013,133.31,133.27,7.5033]
[1726568701114,7.5008,133.32,133.28,7.5028]
[1726568701300,7.5008,133.32,133.27,7.5033]
[1726568701498,7.5013,133.31,133.27,7.5033]
[1726568704197,7.5008,133.32,133.28,7.5028]
[1726568707330,7.5013,133.31,133.28,7.5028]
[1726568708829,7.5013,133.31,133.27,7.5033]
[1726568716516,0.2589704,133.33,133.26,26.2639]
[1726568716517,74.0358544,133.33,133.26,26.2639]
[1726568716718,2.68875161,133.31,133.24,48.3538]
[1726568716926,7.5038,133.27,133.24,18.763]
[1726568717711,7.5041,133.26,133.23,7.5056]
[1726568718111,7.5038,133.27,133.23,7.5056]
[1726568719548,7.5042,133.26,133.22,26.272]
[1726568722428,7.5055,133.24,133.2,23.5719]
[1726568722612,7.5059,133.23,133.2,23.5719]
[1726568723546,7.5055,133.24,133.2,23.5719]
[1726568725449,7.5059,133.23,133.2,7.5071]
[1726568725617,25.2825,133.26,133.19,26.5358704]
[1726568725820,7.5059,133.23,133.19,26.5358704]
[1726568729848,7.5053,133.24,133.2,7.5071]
[1726568730946,25.2825,133.26,133.2,7.5071]
[1726568730947,7.5058,133.23,133.2,7.5071]
[1726568731523,7.5058,133.23,133.19,26.5357704]
[1726568733540,28.35058882,133.26,133.19,26.5357704]
[1726568733541,7.5065,133.22,133.19,26.5357704]
[1726568734652,7.5065,133.22,133.19,19.0279704]
[1726568739345,7.5065,133.22,133.19,26.5358704]
[1726568741040,7.5059,133.23,133.2,7.5073]
[1726568744974,7.5059,133.23,133.19,26.5357704]
[1726568749259,1.30987416,133.24,133.2,18.7676]
[1726568749476,7.5048,133.25,133.21,7.5067]
[1726568749680,7.5053,133.24,133.21,7.5067]
[1726568750354,7.5053,133.24,133.2,41.8216]
[1726568756075,7.5059,133.23,133.2,34.3144]
[1726568756654,7.5063,133.22,133.2,15.5468]
[1726568760173,7.5069,133.21,133.2,15.5468]
[1726568760856,7.5069,133.21,133.19,0.2589704]
[1726568761464,7.5066,133.22,133.19,0.2589704]
[1726568763974,7.507,133.21,133.19,0.2589704]
[1726568764765,7.5065,133.22,133.19,0.2589704]
[1726568765858,7.5065,133.22,133.19,7.7668704]
[1726568766059,7.5065,133.22,133.19,0.2589704]
[1726568766959,7.5075,133.2,133.19,0.2589704]
[1726568768062,59.29946925,133.23,133.15,0.2589704]
[1726568768063,7.5089,133.18,133.15,0.2589704]
[1726568768488,7.5083,133.19,133.15,7.7691704]
[1726568770768,3.92196603,133.21,133.15,0.2589704]
[1726568770966,7.5088,133.18,133.15,0.2589704]
[1726568774289,7.5092,133.17,133.15,0.2589704]
[1726568778083,7.5097,133.16,133.15,0.2589704]
[1726568788622,9.19313387,133.16,133.15,0.2589704]
[1726568788921,9.19313387,133.16,133.11,0.2589704]
[1726568788922,7.5118,133.13,133.11,0.2589704]
[1726568789228,7.512,133.12,133.11,0.2589704]
[1726568791625,81.288884,133.12,133.11,0.2589704]
[1726568791930,81.288884,133.12,133.07,0.2589704]
[1726568791931,7.5142,133.08,133.07,0.2589704]
[1726568792295,7.5131,133.1,133.07,0.2589704]
[1726568792526,7.5122,133.12,133.08,7.5139]
[1726568797911,7.5126,133.11,133.08,7.5139]
[1726568801327,7.5121,133.12,133.09,7.5136]
[1726568801536,7.5118,133.13,133.09,7.5136]
[1726568803330,7.512,133.12,133.08,32.6478]
[1726568803510,7.5126,133.11,133.08,32.6478]
[1726568804317,7.5126,133.11,133.08,25.1337]
[1726568805208,7.5122,133.12,133.08,34.15049412]
[1726568806128,7.5122,133.12,133.08,32.6479]
[1726568807538,7.5126,133.11,133.08,32.6479]
[1726568812243,7.5133,133.1,133.08,6.3484]
[1726568816939,7.5133,133.1,133.07,0.2589704]
[1726568819020,7.5133,133.1,133.07,7.7737704]
[1726568822654,3.09741984,133.13,133.07,0.2589704]
[1726568822953,7.5134,133.1,133.07,7.7736704]
[1726568826569,18.7809,133.12,133.07,0.2589704]
[1726568826758,7.5139,133.09,133.07,0.2589704]
[1726568827152,7.5133,133.1,133.07,0.2589704]
[1726568827973,7.5128,133.11,133.07,7.7734704]
[1726568828284,7.5128,133.11,133.08,1.50272803]
[1726568828459,7.5128,133.11,133.07,9.27619843]
[1726568829976,7.5128,133.11,133.07,7.7734704]
[1726568831283,7.5132,133.1,133.07,7.7734704]
[1726568831652,7.5138,133.09,133.07,0.2589704]
[1726568831965,7.24668618,133.09,133.07,0.2589704]
[1726568833474,7.5132,133.1,133.07,9.27662059]
[1726568834565,7.5132,133.1,133.07,1.76182059]
[1726568834770,7.5132,133.1,133.07,0.2589704]
[1726568835756,7.5139,133.09,133.07,0.2589704]
[1726568836071,7.5135,133.1,133.07,7.7737704]
[1726568836460,11.43416603,133.12,133.09,7.5136]
[1726568836661,7.5122,133.12,133.08,7.514]
[1726568837300,7.5122,133.12,133.09,7.5136]
[1726568837578,3.92196603,133.16,133.13,7.5114]
[1726568837785,11.43206603,133.16,133.12,26.2918]
[1726568838072,7.5101,133.16,133.12,18.78]
[1726568838382,3.92196603,133.17,133.12,18.78]
[1726568838585,3.92196603,133.18,133.13,7.57628056]
[1726568838781,3.92196603,133.19,133.16,7.5092]
[1726568838979,11.42976603,133.2,133.16,7.5092]
[1726568839146,7.5078,133.2,133.16,7.5092]
[1726568839350,4.18093643,133.21,133.15,18.7756]
[1726568839351,7.5083,133.19,133.15,18.7756]
[1726568840090,7.5083,133.19,133.15,26.2857]
[1726568844785,74.0358544,133.21,133.14,15.0099]
[1726568844993,94.48688827,133.21,133.14,15.0099]
[1726568845170,102.31123685,133.21,133.14,15.0099]
[1726568845765,7.5098,133.16,133.14,15.0099]
[1726568849902,7.5094,133.17,133.14,15.0099]
[1726568851503,7.5087,133.18,133.14,22.5206]
[1726568851798,7.5092,133.17,133.14,22.5206]
[1726568852189,7.5088,133.18,133.14,22.5206]
[1726568854206,7.5092,133.17,133.14,15.0099]
[1726568856704,7.5098,133.16,133.14,15.0099]
[1726568862223,92.8034544,133.21,133.14,22.5206]
[1726568862524,7.5089,133.18,133.14,22.5206]
[1726568867031,7.5094,133.17,133.14,22.5206]
[1726568869837,7.5097,133.16,133.14,15.0099]
[1726568876144,7.5103,133.15,133.11,18.7812]
[1726568876436,7.5109,133.14,133.11,26.2935]
[1726568876638,7.5114,133.13,133.11,18.7812]
[1726568877227,7.5111,133.14,133.11,18.7812]
[1726568877843,7.5111,133.14,133.11,26.2937]
[1726568878141,7.5112,133.14,133.1,29.0632]
[1726568878436,7.5111,133.14,133.1,21.5503]
[1726568878642,7.5111,133.14,133.11,7.5125]
[1726568880229,7.5115,133.13,133.1,21.5503]
[1726568880546,7.5115,133.13,133.1,29.0633]
[1726568881042,7.5115,133.13,133.1,21.5503]
[1726568881241,7.5121,133.12,133.1,21.5503]
[1726568881453,7.5132,133.1,133.07,23.3118704]
[1726568882029,7.5128,133.11,133.07,23.3118704]
[1726568882436,7.5131,133.1,133.07,15.7971704]
[1726568885846,23.776884,133.12,133.07,0.2589704]
[1726568886159,7.5138,133.09,133.07,0.2589704]
[1726568886356,2.99393399,133.13,133.07,0.2589704]
[1726568886533,7.5132,133.1,133.07,0.2589704]
[1726568891365,7.5137,133.09,133.07,0.2589704]
[1726568895543,3.07208015,133.12,133.07,0.2589704]
[1726568895764,7.514,133.09,133.07,0.2589704]
[1726568897043,7.5133,133.1,133.07,0.2589704]
[1726568897457,7.5129,133.11,133.07,7.7736704]
[1726568897874,21.77633734,133.13,132.91,0.2589704]
[1726568897875,7.521,132.96,132.91,0.2589704]
[1726568898076,7.521,132.96,132.77,294.01934015]
[1726568898077,20.0,132.86,132.79,3.24]
[1726568898376,20.0,132.86,132.51,1597.2]
[1726568898377,54.20241515,132.87,132.55,6.5273]
[1726568898378,20.0,132.72,132.55,6.5273]
[1726568898577,20.0,132.72,132.55,12.5396882]
[1726568898578,50.0,132.66,132.55,12.5396882]
[1726568898782,7.5404,132.62,132.55,12.5396882]
[1726568898947,50.0,132.65,132.55,7.5396882]
[1726568898948,7.539,132.65,132.55,7.5396882]
[1726568899149,18.8436,132.68,132.62,12.14565936]
[1726568899150,50.0,132.68,132.62,12.14565936]
[1726568899353,50.0,132.71,132.6,18.8536]
[1726568899651,36.81962015,132.87,132.55,17.5396882]
[1726568899652,20.0,132.74,132.65,12.14565936]
[1726568899855,70.0,132.75,132.68,7.5366]
[1726568900167,20.0,132.75,132.67,18.8425]
[1726568900359,1.5027,132.84,132.67,18.8425]
[1726568900360,78.34134355,132.74,132.67,26.3799]
[1726568900568,9.44711452,132.72,132.67,18.8425]
[1726568900766,37.78845807,132.71,132.67,18.8425]
[1726568900954,28.34134355,132.7,132.67,26.3797]
[1726568901155,28.34134355,132.69,132.67,26.3797]
[1726568901455,50.0,132.74,132.67,26.3797]
[1726568901768,50.0,132.74,132.69,7.5363]
[1726568901769,23.776884,132.73,132.69,7.5363]
[1726568902078,50.0,132.74,132.7,7.5356]
[1726568902276,23.776884,132.76,132.73,7.5339]
[1726568902469,50.0,132.77,132.73,7.5339]
[1726568902781,50.0,132.81,132.75,7.5326]
[1726568902963,50.0,132.81,132.74,18.8335]
[1726568902964,50.0,132.79,132.74,18.8335]
[1726568903293,50.0,132.79,132.75,7.5328]
[1726568904281,23.776884,132.78,132.75,7.5328]
[1726568905775,50.0,132.81,132.76,7.5322]
[1726568906072,50.0,132.78,132.74,24.39141729]
[1726568907167,23.776884,132.77,132.74,24.39141729]
[1726568907356,50.0,132.78,132.74,24.39141729]
[1726568907682,23.776884,132.79,132.75,7.5328]
[1726568908353,23.776884,132.79,132.69,37.6804]
[1726568909074,50.0,132.77,132.69,37.6804]
[1726568909278,1.5027,132.76,132.69,37.6804]
[1726568909466,1.5027,132.76,132.74,18.8335]
[1726568911572,1.5027,132.76,132.73,7.534]
[1726568911573,34.35566076,132.79,132.72,7.5346]
[1726568911764,50.0,132.76,132.72,7.5346]
[1726568911957,23.776884,132.77,132.73,7.534]
[1726568912162,23.776884,132.77,132.74,7.5334]
[1726568912469,50.0,132.78,132.75,7.5327]
[1726568916757,50.0,132.78,132.73,26.369]
[1726568917677,50.0,132.78,132.73,18.835]
[1726568917874,50.0,132.78,132.74,7.5333]
[1726568919288,23.776884,132.77,132.71,7.5347]
[1726568920492,23.776884,132.77,132.72,7.5346]
[1726568923781,50.0,132.75,132.71,7.5347]
[1726568925790,50.0,132.75,132.7,26.3744]
[1726568927169,50.0,132.75,132.71,7.5352]
[1726568930084,60.57877676,132.78,132.72,18.8361]
[1726568930399,50.0,132.78,132.67,37.6854]
[1726568931382,23.776884,132.77,132.73,7.5337]
[1726568932386,50.0,132.78,132.76,7.5322]
[1726568932596,50.0,132.78,132.76,26.3625]
[1726568932797,50.0,132.78,132.76,26.3629]
[1726568932976,50.0,132.78,132.76,18.8306]
[1726568933511,50.0,132.8,132.77,7.5318]
[1726568934007,50.0,132.8,132.76,26.3628]
[1726568934204,50.0,132.8,132.77,7.5316]
[1726568935097,10.57877676,132.81,132.78,7.5311]
[1726568935283,10.57877676,132.81,132.79,7.5306]
[1726568935809,10.57877676,132.81,132.8,7.5301]
[1726568936099,50.0,132.84,132.81,7.5295]
[1726568936707,60.57877676,132.86,132.83,7.5282]
[1726568937403,60.57877676,132.86,132.81,7.529]
[1726568938193,60.57877676,132.86,132.82,7.5287]
[1726568939678,23.776884,132.85,132.82,7.5287]
[1726568940590,50.0,132.84,132.8,7.53]
[1726568940797,23.776884,132.83,132.78,18.8271]
[1726568941015,25.22416374,132.83,132.78,18.8271]
[1726568941303,25.22416374,132.83,132.79,7.5302]
[1726568941501,25.22416374,132.83,132.77,6.051]
[1726568941502,50.0,132.82,132.77,7.5316]
[1726568941702,23.776884,132.81,132.75,18.8323]
[1726568942297,50.0,132.8,132.75,18.8323]
[1726568943094,23.776884,132.81,132.75,18.8323]
[1726568943301,50.0,132.82,132.77,18.8289]
[1726568943613,10.57877676,132.85,132.79,7.5301]
[1726568943614,23.776884,132.83,132.79,7.5301]
[1726568944611,50.0,132.84,132.81,7.5292]
[1726568945314,50.0,132.84,132.82,7.5289]
[1726568945486,10.57877676,132.85,132.82,7.5289]
[1726568947099,10.57877676,132.85,132.83,7.5283]
[1726568947289,10.57877676,132.85,132.82,7.5287]
[1726568947685,10.57877676,132.85,132.83,7.528]
[1726568948595,10.57877676,132.85,132.82,7.5288]
[1726568949789,10.57877676,132.85,132.83,26.349]
[1726568949991,23.776884,132.87,132.83,18.821]
[1726568950518,23.776884,132.87,132.83,26.3492]
[1726568951014,34.35566076,132.87,132.83,26.3492]
[1726568951714,23.776884,132.87,132.83,18.821]
[1726568952016,60.57877676,132.86,132.82,7.5288]
[1726568953111,23.776884,132.85,132.81,7.5291]
[1726568953614,23.776884,132.85,132.82,7.5288]
[1726568955009,23.776884,132.85,132.77,18.8285]
[1726568955314,1.44727974,132.84,132.79,7.5301]
[1726568955610,1.44727974,132.84,132.8,7.53]
[1726568957305,51.44727974,132.84,132.8,7.53]
[1726568957917,7.5285,132.83,132.79,26.3569]
[1726568958221,7.5292,132.82,132.78,7.5308]
[1726568959824,58.97557974,132.84,132.79,18.8265]
[1726568960030,57.5283,132.84,132.79,18.8265]
[1726568960233,50.0,132.84,132.81,18.8237]
[1726568960411,50.0,132.86,132.83,7.528]
[1726568960728,50.0,132.86,132.82,7.5287]
[1726568961304,57.5268,132.86,132.82,7.5287]
[1726568961610,57.9658476,132.86,132.82,7.5287]
[1726568962625,7.9658476,132.86,132.82,7.5287]
[1726568962932,57.9658476,132.86,132.82,7.5287]
[1726568963109,0.4390476,132.86,132.83,7.5283]
[1726568963623,0.4390476,132.86,132.83,18.8208]
[1726568963830,0.4390476,132.86,132.84,7.5277]
[1726568964830,1.88632734,132.86,132.83,26.349]
[1726568965138,9.13149702,132.85,132.83,26.349]
[1726568967713,9.13149702,132.85,132.84,7.5278]
[1726568968032,9.13149702,132.85,132.83,26.349]
[1726568969814,0.4390476,132.86,132.84,7.5278]
[1726568970833,0.4390476,132.86,132.81,7.5294]
[1726568970834,7.5272,132.85,132.81,7.5294]
[1726568971055,7.5279,132.84,132.81,7.5294]
[1726568971239,51.88632734,132.86,132.8,34.4112]
[1726568971410,7.5295,132.81,132.8,15.5872]
[1726568971616,7.5292,132.82,132.78,7.5309]
[1726568972335,7.5292,132.82,132.79,7.5306]
[1726568972527,7.5286,132.83,132.79,7.5306]
[1726568974518,7.5282,132.84,132.8,26.354]
[1726568974726,10.57877676,132.85,132.8,26.354]
[1726568975143,7.528,132.84,132.8,26.354]
[1726568976555,7.6434576,132.84,132.8,26.354]
[1726568977254,7.6434576,132.84,132.77,37.657]
[1726568977255,75.33962134,132.84,132.79,7.5304]
[1726568977457,7.529,132.82,132.78,7.531]
[1726568977637,7.5286,132.83,132.79,7.5306]
[1726568978262,91.99911836,132.84,132.8,7.5299]